bitfinex-derivatives/quotes_SOLF0:USTF0_20240902
["timestamp","ask_amount","ask_price","bid_price","bid_amount"]
[1725299413605,30.2285,133.31,133.22,28.85]
[1725299413901,31.6036,133.31,133.22,28.85]
[1725299414696,0.05713537,133.28,133.25,0.05514635]
[1725299415003,28.85,133.27,133.15,95.72388129]
[1725299415197,10.2896,133.31,133.16,28.85]
[1725299415198,28.85,133.25,133.16,28.85]
[1725299415398,32.6023,133.25,133.2,3.7533]
[1725299415899,32.6023,133.25,133.19,3.7537]
[1725299415900,3.7524,133.24,133.19,3.7537]
[1725299416094,3.80095566,133.24,133.21,0.04930364]
[1725299416299,0.04855566,133.24,133.21,0.04930364]
[1725299416498,3.753,133.22,133.21,0.04930364]
[1725299416799,28.85,133.22,133.15,95.72388129]
[1725299417003,28.85,133.22,133.15,99.47858129]
[1725299417804,0.05174255,133.2,133.17,0.05271489]
[1725299418006,3.77862882,133.19,133.17,0.05271489]
[1725299418702,3.80544255,133.2,133.17,0.05271489]
[1725299419006,3.82924499,133.2,133.17,0.05271489]
[1725299420909,7.58284499,133.2,133.17,0.05271489]
[1725299421507,3.82924499,133.2,133.17,0.05271489]
[1725299421909,7.58284499,133.2,133.17,0.05271489]
[1725299422110,32.67924499,133.2,133.17,0.05271489]
[1725299422510,3.7541,133.18,133.17,0.05271489]
[1725299425613,32.6041,133.18,133.17,0.05271489]
[1725299426018,3.7541,133.18,133.17,0.05271489]
[1725299426216,3.7539,133.19,133.17,0.05271489]
[1725299426408,3.82924499,133.2,133.17,0.05271489]
[1725299427817,3.82924499,133.2,133.18,3.754]
[1725299428017,3.82924499,133.2,133.17,0.05271489]
[1725299428220,0.05174255,133.2,133.17,0.05271489]
[1725299429114,0.05174255,133.2,133.19,3.7538]
[1725299429514,0.05174255,133.2,133.17,0.05271489]
[1725299429817,0.05174255,133.2,133.17,3.80691489]
[1725299430119,0.05174255,133.2,133.17,0.05271489]
[1725299431519,3.7539,133.19,133.17,0.05271489]
[1725299431918,0.05174255,133.2,133.17,0.05271489]
[1725299433015,0.05174255,133.2,133.19,3.7538]
[1725299435319,0.05174255,133.2,133.17,0.05271489]
[1725299436318,3.80544255,133.2,133.17,0.05271489]
[1725299438325,3.7539,133.19,133.17,0.05271489]
[1725299439123,3.7538,133.19,133.17,0.05271489]
[1725299441226,3.7541,133.18,133.17,0.05271489]
[1725299443325,3.7539,133.19,133.17,0.05271489]
[1725299443522,0.05174255,133.2,133.17,0.05271489]
[1725299444224,0.05174255,133.2,133.19,3.7538]
[1725299458129,28.85,133.26,133.23,3.7525]
[1725299458629,3.752,133.26,133.19,28.85]
[1725299458833,7.5709804,133.26,133.24,3.7522]
[1725299459033,3.8189804,133.26,133.24,3.7522]
[1725299459232,3.8189804,133.26,133.24,3.80399573]
[1725299459233,3.87513327,133.26,133.24,3.80399573]
[1725299459643,3.87513327,133.26,133.25,3.7521]
[1725299459838,0.05615287,133.26,133.25,3.7521]
[1725299460142,3.71738992,133.26,133.24,3.80419573]
[1725299460341,0.05615287,133.26,133.24,3.80419573]
[1725299460843,3.7860733,133.26,133.24,3.80419573]
[1725299461043,0.05615287,133.26,133.25,3.7521]
[1725299463142,32.61327589,133.26,133.24,0.05179573]
[1725299463346,28.85,133.25,133.24,0.05179573]
[1725299463540,36.41843265,133.25,133.24,0.05179573]
[1725299465844,28.90615287,133.26,133.24,0.05179573]
[1725299466046,0.05615287,133.26,133.24,0.05179573]
[1725299467048,0.05615287,133.26,133.25,3.7521]
[1725299470954,0.05615287,133.26,133.24,0.05179573]
[1725299470955,32.66178181,133.26,133.24,0.05179573]
[1725299471253,28.90615287,133.26,133.24,0.05179573]
[1725299471755,3.82467727,133.25,133.24,0.05179573]
[1725299472150,32.65805287,133.26,133.24,0.05179573]
[1725299472655,3.80216151,133.25,133.24,0.05179573]
[1725299473953,7.55426151,133.25,133.24,0.05179573]
[1725299475762,3.80216151,133.25,133.24,0.05179573]
[1725299475951,28.90615287,133.26,133.24,0.05179573]
[1725299476157,3.75577007,133.26,133.24,0.05179573]
[1725299476653,7.50777007,133.26,133.24,0.05179573]
[1725299477060,32.60577007,133.26,133.24,0.05179573]
[1725299477953,36.35767007,133.26,133.24,0.05179573]
[1725299480158,3.7521,133.25,133.24,0.05179573]
[1725299481449,36.35767007,133.26,133.24,0.05179573]
[1725299483950,19.03767007,133.26,133.24,0.05179573]
[1725299484559,3.75577007,133.26,133.24,3.80409573]
[1725299485662,3.75577007,133.26,133.25,15.2821]
[1725299485663,0.05615287,133.26,133.25,15.2821]
[1725299487370,0.05615287,133.26,133.25,3.7521]
[1725299493768,0.05615287,133.26,133.25,15.2821]
[1725299494265,1.3574,133.37,133.25,11.53]
[1725299494472,3.83722692,133.34,133.29,11.53]
[1725299494661,11.53,133.35,133.29,11.53]
[1725299495171,0.05008876,133.33,133.31,0.05632254]
[1725299495570,0.05008876,133.33,133.32,3.7501]
[1725299497164,0.05008876,133.33,133.31,0.05632254]
[1725299497165,11.58008876,133.33,133.31,0.05632254]
[1725299497361,11.53,133.32,133.31,0.05632254]
[1725299500062,28.8,133.32,133.31,0.05632254]
[1725299501068,0.05008876,133.33,133.31,0.05632254]
[1725299503278,0.05008876,133.33,133.31,3.80662254]
[1725299503471,0.05008876,133.33,133.31,0.05632254]
[1725299505070,0.05008876,133.33,133.32,3.7501]
[1725299505470,3.74671866,133.38,133.31,28.85632254]
[1725299505670,28.8,133.41,133.31,28.85632254]
[1725299505871,32.58684467,133.41,133.31,28.85632254]
[1725299506276,32.58684467,133.41,133.31,28.8]
[1725299506479,32.58684467,133.41,133.33,28.8]
[1725299506668,0.05554866,133.37,133.36,3.749]
[1725299506873,32.58684467,133.41,133.35,0.04888784]
[1725299507074,0.05373927,133.38,133.35,0.04888784]
[1725299507374,0.05373927,133.38,133.37,3.7487]
[1725299512372,1.3933,133.44,133.42,3.7473]
[1725299513382,0.05750376,133.44,133.43,3.747]
[1725299513586,157.495,133.56,133.43,32.63706095]
[1725299513587,1.457,133.5,133.43,32.63706095]
[1725299513778,5.25320128,133.5,133.43,28.8]
[1725299514080,5.25320128,133.5,133.42,0.05526847]
[1725299514081,3.78458064,133.49,133.42,28.8]
[1725299514283,1.457,133.5,133.41,28.8]
[1725299514284,30.257,133.5,133.41,28.8]
[1725299514480,33.912629,133.5,133.41,28.8]
[1725299514781,0.0495763,133.47,133.44,0.05208625]
[1725299515181,149.94,133.61,133.44,0.05208625]
[1725299515182,149.94,133.6,133.44,0.05208625]
[1725299515382,28.8,133.54,133.45,28.8]
[1725299515681,28.8,133.54,133.44,3.74634694]
[1725299515682,28.8,133.53,133.48,3.7456]
[1725299515872,28.8,133.53,133.44,28.8]
[1725299516073,32.63139752,133.53,133.44,32.48977144]
[1725299516287,28.8,133.57,133.48,28.8]
[1725299516482,0.04772875,133.5,133.49,28.8]
[1725299516786,28.8,133.63,133.49,28.8]
[1725299516982,1.08424413,133.62,133.54,28.8]
[1725299517489,4.82604413,133.62,133.57,3.743]
[1725299517781,1.08424413,133.61,133.54,28.8]
[1725299518081,1.08424413,133.61,133.58,0.04970877]
[1725299518082,0.05346631,133.61,133.58,0.04970877]
[1725299518881,0.05346631,133.61,133.58,3.79230877]
[1725299519092,0.05346631,133.61,133.58,0.04970877]
[1725299519285,7.31429099,133.75,133.6,28.8]
[1725299519476,2.6806,133.7,133.6,28.8]
[1725299519681,28.8,133.69,133.6,28.8]
[1725299519885,28.8,133.67,133.58,28.8]
[1725299520083,28.8,133.67,133.6,3.7421]
[1725299520084,32.48868419,133.67,133.6,3.7421]
[1725299520282,0.04902504,133.65,133.62,0.04888682]
[1725299520482,0.04902504,133.65,133.63,3.7414]
[1725299520677,0.04902504,133.65,133.62,0.04888682]
[1725299521184,0.04902504,133.65,133.62,28.84888682]
[1725299521387,0.04902504,133.65,133.64,28.8]
[1725299521891,0.04902504,133.65,133.64,32.5412]
[1725299522386,1.3494,133.7,133.64,28.8]
[1725299522986,1.3494,133.7,133.67,3.7402]
[1725299523194,1.3494,133.7,133.64,28.8]
[1725299523390,0.0516309,133.68,133.66,0.05503001]
[1725299523589,28.8,133.67,133.58,28.8]
[1725299523778,30.1794,133.67,133.58,28.8]
[1725299523983,30.1794,133.67,133.6,3.7423]
[1725299524687,0.05317743,133.65,133.59,3.7425]
[1725299524885,3.76581094,133.64,133.59,3.7425]
[1725299525084,32.5414,133.63,133.62,0.0537412]
[1725299525289,32.51716188,133.63,133.53,28.8]
[1725299525594,28.8,133.61,133.51,28.8]
[1725299525885,28.8,133.61,133.55,3.7435]
[1725299526083,3.80473018,133.61,133.53,35.94]
[1725299526278,0.05348469,133.58,133.56,0.05082744]
[1725299526489,0.05165119,133.58,133.56,0.05082744]
[1725299527087,0.05165119,133.58,133.56,3.79402744]
[1725299527291,0.05165119,133.58,133.56,0.05082744]
[1725299527479,0.05165119,133.58,133.57,3.7431]
[1725299527683,0.05165119,133.58,133.56,0.05082744]
[1725299528889,0.05165119,133.58,133.56,3.79402744]
[1725299529090,0.05165119,133.58,133.56,0.05082744]
[1725299529889,0.05165119,133.58,133.49,35.94]
[1725299530096,35.94,133.58,133.47,35.94]
[1725299530389,35.94,133.54,133.42,3.68513665]
[1725299530587,35.94,133.57,133.46,35.94]
[1725299530787,37.3424,133.6,133.48,35.94]
[1725299530988,0.04853459,133.53,133.5,0.05252775]
[1725299531193,0.04853459,133.53,133.52,3.7443]
[1725299531194,0.04898114,133.53,133.52,3.7443]
[1725299531393,0.04898114,133.53,133.5,35.98772596]
[1725299531789,0.04898114,133.53,133.5,0.04772596]
[1725299532183,3.79328114,133.53,133.5,0.04772596]
[1725299532590,0.04898114,133.53,133.5,0.04772596]
[1725299533903,3.79338114,133.53,133.5,0.04772596]
[1725299534094,0.04898114,133.53,133.5,0.04772596]
[1725299534602,3.7447,133.52,133.5,0.04772596]
[1725299534991,5.0662,133.52,133.5,0.04772596]
[1725299535388,8.81432679,133.52,133.5,0.04772596]
[1725299535886,3.7453,133.5,133.45,3.7464]
[1725299536090,35.94,133.51,133.42,35.94]
[1725299536286,3.7456,133.49,133.42,35.94]
[1725299536697,35.94,133.51,133.42,35.94]
[1725299537002,35.94,133.51,133.45,0.049218]
[1725299537003,3.79711723,133.48,133.45,0.049218]
[1725299537294,0.05131723,133.48,133.45,0.049218]
[1725299538095,1.433,133.54,133.46,35.94]
[1725299538291,1.433,133.54,133.48,35.94]
[1725299538491,3.7446,133.52,133.48,35.94]
[1725299538696,1.433,133.54,133.44,35.94]
[1725299538989,5.12549213,133.54,133.47,3.7459]
[1725299539191,3.745,133.51,133.49,0.04726661]
[1725299539596,3.78018965,133.52,133.49,0.04726661]
[1725299539789,7.52488965,133.52,133.49,0.04726661]
[1725299541301,3.78018965,133.52,133.49,0.04726661]
[1725299541706,3.7451,133.5,133.49,0.04726661]
[1725299542408,5.18758965,133.52,133.49,0.04726661]
[1725299543010,3.7448,133.51,133.49,0.04726661]
[1725299544312,1.46287813,133.52,133.49,0.04726661]
[1725299544707,0.05547813,133.52,133.49,0.04726661]
[1725299546216,0.05547813,133.52,133.49,3.79246661]
[1725299546918,3.80017813,133.52,133.49,0.04726661]
[1725299547108,0.05547813,133.52,133.49,0.04726661]
[1725299548512,37.3182,133.53,133.42,35.94]
[1725299548513,3.7452,133.5,133.46,3.7459]
[1725299549116,3.7454,133.49,133.45,3.7464]
[1725299549621,0.04723182,133.48,133.46,3.79587373]
[1725299550115,0.04723182,133.48,133.46,0.04967373]
[1725299550309,0.04723182,133.48,133.47,3.7459]
[1725299552018,0.04723182,133.48,133.46,3.79577373]
[1725299552217,0.04723182,133.48,133.46,0.04967373]
[1725299553019,3.79303182,133.48,133.46,0.04967373]
[1725299553418,0.04723182,133.48,133.46,0.04967373]
[1725299554217,3.79293182,133.48,133.46,0.04967373]
[1725299554410,0.04723182,133.48,133.46,0.04967373]
[1725299555121,0.04723182,133.48,133.46,3.79577373]
[1725299555817,3.79293182,133.48,133.46,0.04967373]
[1725299556717,0.04723182,133.48,133.46,0.04967373]
[1725299556918,0.04723182,133.48,133.46,3.79587373]
[1725299557814,0.04723182,133.48,133.47,3.7459]
[1725299559111,0.04723182,133.48,133.46,0.04967373]
[1725299559527,0.04723182,133.48,133.46,3.79557373]
[1725299560015,0.04723182,133.48,133.46,0.04967373]
[1725299560323,7.58375403,133.47,133.46,0.04967373]
[1725299560517,35.94,133.48,133.38,35.94]
[1725299560709,35.94,133.44,133.34,2.7855]
[1725299561024,39.71866027,133.44,133.34,2.7855]
[1725299561222,35.94,133.42,133.33,35.94]
[1725299561518,35.94,133.42,133.36,0.05000143]
[1725299561519,0.05655848,133.39,133.36,0.05000143]
[1725299562116,0.05655848,133.39,133.36,3.79880143]
[1725299563324,3.80475848,133.39,133.36,3.79880143]
[1725299563823,0.05655848,133.39,133.36,3.79880143]
[1725299564510,0.05655848,133.39,133.37,3.7487]
[1725299565324,3.80475848,133.39,133.36,3.79890143]
[1725299565511,3.80475848,133.39,133.36,0.05000143]
[1725299566117,3.7485,133.38,133.36,0.05000143]
[1725299567422,3.7487,133.37,133.36,0.05000143]
[1725299568222,3.7486,133.38,133.36,0.05000143]
[1725299568618,1.43725848,133.39,133.36,0.05000143]
[1725299569824,5.18545848,133.39,133.36,0.05000143]
[1725299571725,3.7485,133.38,133.36,0.05000143]
[1725299572026,35.94,133.38,133.36,0.05000143]
[1725299572224,3.7487,133.37,133.36,0.05000143]
[1725299572623,38.6813,133.38,133.36,0.05000143]
[1725299572820,5.1594,133.38,133.36,0.05000143]
[1725299573024,0.05655848,133.39,133.36,0.05000143]
[1725299573622,0.05655848,133.39,133.37,3.7485]
[1725299575052,0.05655848,133.39,133.36,3.79880143]
[1725299576431,0.05655848,133.39,133.37,3.7486]
[1725299576932,0.05655848,133.39,133.36,0.05000143]
[1725299576933,0.05655848,133.39,133.38,3.7485]
[1725299580328,0.05655848,133.39,133.36,0.05000143]
[1725299581232,3.80475848,133.39,133.36,3.79890143]
[1725299582134,0.05655848,133.39,133.37,3.7486]
[1725299584037,3.80475848,133.39,133.36,3.79900143]
[1725299584440,35.99655848,133.39,133.36,0.05000143]
[1725299584633,3.7487,133.37,133.36,0.05000143]
[1725299584935,7.56551854,133.37,133.36,0.05000143]
[1725299585139,3.7487,133.37,133.36,0.05000143]
[1725299585330,35.94,133.37,133.27,39.75111277]
[1725299585741,39.67237323,133.37,133.31,3.7504]
[1725299585939,39.67237323,133.37,133.27,35.94]
[1725299586342,43.42137323,133.37,133.33,3.7497]
[1725299586638,39.67237323,133.37,133.27,35.94]
[1725299586844,0.05378266,133.33,133.32,3.75]
[1725299587037,0.05024525,133.34,133.32,3.75]
[1725299587845,0.05024525,133.34,133.31,3.80655358]
[1725299588537,3.79984525,133.34,133.31,3.80655358]
[1725299588741,3.79984525,133.34,133.31,0.05625358]
[1725299589237,3.79984525,133.34,133.31,3.80645358]
[1725299590044,0.05024525,133.34,133.32,3.7501]
[1725299590345,0.05024525,133.34,133.31,0.05625358]
[1725299590535,3.7501,133.32,133.31,0.05625358]
[1725299591341,5.138,133.32,133.31,0.05625358]
[1725299591935,5.138,133.32,133.25,96.78232151]
[1725299591936,3.7507,133.3,133.26,3.7516]
[1725299592136,35.94,133.31,133.26,3.7516]
[1725299592347,35.94,133.31,133.25,96.78232151]
[1725299592545,35.94,133.3,133.22,2.8993]
[1725299592742,39.69797134,133.3,133.2,0.1462]
[1725299593138,0.0481795,133.26,133.24,0.05105139]
[1725299593946,0.0481795,133.26,133.24,3.80325139]
[1725299600439,0.0481795,133.26,133.25,3.7521]
[1725299607943,0.0481795,133.26,133.24,0.05105139]
[1725299608552,3.7521,133.25,133.24,0.05105139]
[1725299609943,3.8002795,133.26,133.24,0.05105139]
[1725299614543,3.7521,133.25,133.24,0.05105139]
[1725299615554,3.8001795,133.26,133.24,0.05105139]
[1725299616854,0.0481795,133.26,133.24,0.05105139]
[1725299619762,0.0481795,133.26,133.25,3.7521]
[1725299625160,232.515,133.38,133.24,0.05105139]
[1725299625161,1.3879,133.32,133.24,0.05105139]
[1725299625361,2.8531,133.36,133.26,36.01]
[1725299625572,4.3123,133.36,133.26,36.01]
[1725299626167,0.04717972,133.32,133.3,0.05693943]
[1725299627061,0.04717972,133.32,133.31,3.7504]
[1725299634771,28.82,133.39,133.37,3.7487]
[1725299635867,32.61729386,133.39,133.37,0.0538098]
[1725299636679,28.86899386,133.39,133.37,0.0538098]
[1725299636876,0.04899386,133.39,133.37,0.0538098]
[1725299637881,0.04899386,133.39,133.37,3.8023098]
[1725299638777,0.04899386,133.39,133.37,0.0538098]
[1725299638973,28.82,133.38,133.29,1.419]
[1725299639178,32.5692,133.36,133.32,3.7499]
[1725299639380,3.67041619,133.35,133.32,3.7499]
[1725299639879,3.72520743,133.35,133.32,3.79878646]
[1725299640081,0.05479124,133.35,133.32,0.04888646]
[1725299640282,1.47539124,133.35,133.32,0.04888646]
[1725299640785,5.22154681,133.35,133.32,0.04888646]
[1725299640982,3.7498,133.34,133.32,0.04888646]
[1725299641177,28.82,133.34,133.32,0.04888646]
[1725299641486,3.7499,133.33,133.32,0.04888646]
[1725299641676,28.82,133.34,133.32,0.04888646]
[1725299643286,32.5697,133.34,133.32,0.04888646]
[1725299643788,28.82,133.34,133.32,0.04888646]
[1725299644685,3.7499,133.33,133.32,0.04888646]
[1725299645084,30.1744,133.34,133.25,28.82]
[1725299645280,3.7505,133.31,133.28,3.7511]
[1725299645482,28.82,133.32,133.28,3.7511]
[1725299645980,32.5703,133.32,133.28,3.7511]
[1725299646186,0.05712251,133.31,133.29,0.04751636]
[1725299646389,0.05712251,133.31,133.29,3.79851636]
[1725299646590,3.7507,133.3,133.29,0.04751636]
[1725299646795,28.82,133.31,133.21,125.78117153]
[1725299647287,28.82,133.32,133.23,28.82]
[1725299647591,1.3544,133.34,133.21,96.96117153]
[1725299647592,28.82,133.31,133.21,96.96117153]
[1725299647785,28.82,133.31,133.21,125.78117153]
[1725299648091,0.05543633,133.27,133.26,3.7518]
[1725299648289,3.73740229,133.28,133.26,3.7518]
[1725299648492,0.05652888,133.28,133.26,3.7518]
[1725299649090,3.77792154,133.28,133.26,3.7518]
[1725299649393,0.05652888,133.28,133.26,3.7518]
[1725299649703,3.87434234,133.28,133.25,3.80857373]
[1725299649992,0.05652888,133.28,133.25,0.05657373]
[1725299650194,1.51422888,133.28,133.25,0.05657373]
[1725299650590,6.65779041,133.28,133.25,0.05657373]
[1725299650794,3.7518,133.26,133.25,0.05657373]
[1725299650989,3.69756097,133.26,133.25,0.05657373]
[1725299651198,2.91932888,133.28,133.25,0.05657373]
[1725299651489,3.76660412,133.27,133.25,0.05657373]
[1725299651991,3.76660412,133.27,133.26,3.7518]
[1725299652296,1.51422888,133.28,133.26,3.7518]
[1725299652790,5.24593619,133.28,133.26,3.7518]
[1725299653693,1.51422888,133.28,133.25,0.05657373]
[1725299654295,3.67119483,133.27,133.25,0.05657373]
[1725299654595,3.67119483,133.27,133.26,3.7518]
[1725299655193,1.51422888,133.28,133.26,3.7518]
[1725299655793,3.8212999,133.27,133.26,3.7518]
[1725299655996,5.26562888,133.28,133.25,3.80857373]
[1725299656202,1.51422888,133.28,133.25,0.05657373]
[1725299656500,5.24208838,133.28,133.25,0.05657373]
[1725299656702,1.51422888,133.28,133.25,0.05657373]
[1725299656902,5.26562888,133.28,133.25,3.80867373]
[1725299657199,3.82467727,133.27,133.25,0.05657373]
[1725299657498,3.82467727,133.27,133.26,3.7518]
[1725299657692,1.51422888,133.28,133.26,3.7518]
[1725299658392,3.80854097,133.27,133.26,3.7518]
[1725299659800,0.05652888,133.28,133.27,3.7515]
[1725299660694,153.86516361,133.41,133.33,3.7498]
[1725299660695,28.82,133.36,133.33,3.7498]
[1725299660895,28.82,133.36,133.28,28.82]
[1725299661095,32.5692,133.36,133.28,28.82]
[1725299661297,32.5692,133.36,133.33,3.7498]
[1725299661687,32.62648193,133.36,133.33,3.80004845]
[1725299664699,32.62648193,133.36,133.34,3.7494]
[1725299664700,0.05728193,133.36,133.34,3.7494]
[1725299669705,0.05728193,133.36,133.33,0.05024845]
[1725299669706,28.87728193,133.36,133.33,0.05024845]
[1725299670206,28.82,133.34,133.33,0.05024845]
[1725299670504,32.56015452,133.34,133.26,28.82]
[1725299670696,1.3281,133.33,133.26,28.82]
[1725299670902,5.0781,133.33,133.29,3.7507]
[1725299671102,28.82,133.32,133.29,3.7507]
[1725299671308,28.86864023,133.32,133.29,3.80706801]
[1725299671604,32.61894023,133.32,133.29,0.05636801]
[1725299673501,32.61894023,133.32,133.29,3.80726801]
[1725299674908,32.61894023,133.32,133.25,1.3855]
[1725299675404,36.34145842,133.32,133.25,1.3855]
[1725299675801,36.34145842,133.32,133.29,3.7509]
[1725299676103,11.52,133.3,133.27,0.05604719]
[1725299676308,11.52,133.28,133.27,0.05604719]
[1725299679610,3.7511,133.29,133.27,3.80754719]
[1725299680210,3.80457907,133.3,133.27,3.80754719]
[1725299685320,3.7512,133.29,133.27,0.05604719]
[1725299685512,28.85367907,133.3,133.27,0.05604719]
[1725299686918,3.7511,133.29,133.27,0.05604719]
[1725299689821,0.05367907,133.3,133.27,0.05604719]
[1725299690215,0.05367907,133.3,133.27,3.80744719]
[1725299690419,0.05367907,133.3,133.27,0.05604719]
[1725299690918,0.05367907,133.3,133.29,3.751]
[1725299691119,0.05367907,133.3,133.27,0.05604719]
[1725299691823,0.05367907,133.3,133.29,3.751]
[1725299701528,0.05367907,133.3,133.27,0.05604719]
[1725299702324,3.7512,133.29,133.27,0.05604719]
[1725299703132,3.7513,133.28,133.27,0.05604719]
[1725299705828,15.2713,133.28,133.27,0.05604719]
[1725299707229,2.856,133.29,133.27,0.05604719]
[1725299707230,14.376,133.29,133.27,0.05604719]
[1725299707528,1.4466,133.29,133.27,0.05604719]
[1725299707836,1.39067907,133.3,133.27,0.05604719]
[1725299708139,1.39067907,133.3,133.27,3.80744719]
[1725299708140,5.14147907,133.3,133.27,3.80744719]
[1725299708336,5.14147907,133.3,133.27,0.05604719]
[1725299708534,12.91067907,133.3,133.27,0.05604719]
[1725299708929,3.7512,133.29,133.27,0.05604719]
[1725299710824,16.66147907,133.3,133.27,0.05604719]
[1725299711627,5.14147907,133.3,133.27,0.05604719]
[1725299711828,0.05367907,133.3,133.27,0.05604719]
[1725299712029,0.05367907,133.3,133.27,11.57604719]
[1725299712930,0.05367907,133.3,133.29,3.751]
[1725299714632,0.05367907,133.3,133.27,0.05604719]
[1725299714937,28.88367907,133.3,133.27,0.05604719]
[1725299715138,3.7512,133.29,133.27,0.05604719]
[1725299715643,28.88367907,133.3,133.27,0.05604719]
[1725299715843,3.7513,133.28,133.27,0.05604719]
[1725299716841,1.4503,133.29,133.27,0.05604719]
[1725299717636,0.05367907,133.3,133.27,0.05604719]
[1725299718941,0.05367907,133.3,133.28,3.7511]
[1725299720832,3.80437907,133.3,133.27,3.80744719]
[1725299721042,28.88367907,133.3,133.27,0.05604719]
[1725299721737,0.05367907,133.3,133.27,0.05604719]
[1725299721945,0.05367907,133.3,133.28,3.751]
[1725299722145,0.05367907,133.3,133.27,0.05604719]
[1725299722533,0.05367907,133.3,133.28,3.7513]
[1725299723139,0.05367907,133.3,133.28,3.7512]
[1725299723545,0.05367907,133.3,133.27,0.05604719]
[1725299723745,0.05367907,133.3,133.29,3.751]
[1725299725640,7.45580744,133.34,133.3,3.7505]
[1725299726441,30.1606,133.37,133.3,28.83]
[1725299726642,0.05613964,133.35,133.32,0.05728699]
[1725299727049,0.05613964,133.35,133.32,3.80718699]
[1725299727242,0.05613964,133.35,133.32,0.05728699]
[1725299727445,0.05613964,133.35,133.34,3.7496]
[1725299731340,0.05613964,133.35,133.33,3.7498]
[1725299731546,0.05613964,133.35,133.32,0.05728699]
[1725299732649,3.80563964,133.35,133.32,0.05728699]
[1725299736643,3.7498,133.34,133.32,0.05728699]
[1725299737655,3.80553964,133.35,133.32,0.05728699]
[1725299744171,11.53,133.33,133.32,0.05728699]
[1725299744674,15.2799,133.33,133.32,0.05728699]
[1725299745176,11.53,133.33,133.28,3.7511]
[1725299745375,3.7506,133.31,133.28,3.7511]
[1725299745571,7.49122406,133.31,133.26,11.53]
[1725299745769,7.49122406,133.31,133.27,3.7514]
[1725299745975,3.74062406,133.31,133.22,2.7348]
[1725299746272,0.05374642,133.3,133.25,0.0539196]
[1725299746463,3.7511,133.29,133.25,0.0539196]
[1725299747066,3.7511,133.29,133.26,3.7517]
[1725299747567,3.7514,133.28,133.25,0.0539196]
[1725299749278,28.8,133.29,133.25,0.0539196]
[1725299749978,3.7517,133.27,133.25,0.0539196]
[1725299750584,3.80672235,133.27,133.25,0.0539196]
[1725299751284,3.82745541,133.27,133.25,0.0539196]
[1725299754783,3.7518,133.26,133.25,0.0539196]
[1725299756387,3.82745541,133.27,133.25,0.0539196]
[1725299758788,7.83741125,133.42,133.25,0.0539196]
[1725299758789,7.505,133.44,133.26,57.6]
[1725299758991,1.4406,133.37,133.31,28.8]
[1725299759183,5.11554746,133.37,133.34,3.7494]
[1725299759388,1.4406,133.37,133.32,28.8]
[1725299759788,1.4406,133.37,133.35,3.749]
[1725299760086,5.10594163,133.37,133.31,28.8]
[1725299760288,0.05370442,133.36,133.33,3.80434112]
[1725299760495,3.83072076,133.35,133.33,3.80434112]
[1725299761090,0.05370442,133.36,133.33,0.05464112]
[1725299761497,3.83454894,133.36,133.33,0.05464112]
[1725299762199,3.83454894,133.36,133.33,3.80444112]
[1725299762797,3.83454894,133.36,133.33,0.05464112]
[1725299762993,3.83454894,133.36,133.33,3.80434112]
[1725299767001,3.83454894,133.36,133.33,0.05464112]
[1725299767198,32.63454894,133.36,133.33,0.05464112]
[1725299768392,3.7493,133.35,133.33,0.05464112]
[1725299769700,3.7496,133.34,133.33,0.05464112]
[1725299769899,28.8,133.34,133.26,28.8]
[1725299770103,3.7504,133.32,133.26,28.8]
[1725299770298,1.4452,133.33,133.25,88.72667617]
[1725299770796,0.05057774,133.3,133.28,3.79837004]
[1725299771003,0.05057774,133.3,133.28,0.04727004]
[1725299771605,0.05057774,133.3,133.29,3.751]
[1725299772203,0.05057774,133.3,133.28,3.79837004]
[1725299772805,0.05057774,133.3,133.29,3.751]
[1725299773907,0.05057774,133.3,133.28,3.79847004]
[1725299775106,3.80127774,133.3,133.28,0.04727004]
[1725299775707,3.751,133.29,133.28,0.04727004]
[1725299776605,7.58990178,133.29,133.28,0.04727004]
[1725299776912,3.751,133.29,133.28,0.04727004]
[1725299777511,7.55351586,133.29,133.28,0.04727004]
[1725299780413,3.7515,133.28,133.24,3.7522]
[1725299780613,28.8,133.3,133.24,3.7522]
[1725299780808,28.8,133.29,133.24,3.7522]
[1725299781004,32.52636554,133.29,133.24,3.7522]
[1725299781414,3.7517,133.27,133.25,0.04895404]